bitfinex-derivatives/quotes_BNBF0:USTF0_20250908
["timestamp","ask_amount","ask_price","bid_price","bid_amount"]
[1757330926670,1.0190724,880.66,879.06,3.31514493]
[1757330926874,1.0190724,880.58,879.04,3.31514493]
[1757330928077,1.0190724,880.58,879.01,3.31514493]
[1757330930378,1.0190724,880.63,879.01,3.31514493]
[1757330931076,0.19800459,880.7,879.01,3.31514493]
[1757330934982,1.0190724,880.67,878.94,3.31514493]
[1757330935181,1.0190724,880.67,878.93,3.31514493]
[1757330936381,1.0190724,880.67,878.92,3.31514493]
[1757330936778,1.0190724,880.66,878.92,3.31514493]
[1757330937981,1.0190724,880.67,878.92,3.31514493]
[1757330939083,1.0190724,880.68,878.91,3.31514493]
[1757330939280,1.0190724,880.67,878.91,3.31514493]
[1757330939583,1.0190724,880.68,878.91,3.31514493]
[1757330940780,1.0190724,880.65,878.91,3.31514493]
[1757330941482,1.0190724,880.66,878.91,3.31514493]
[1757330942182,1.0190724,880.64,878.91,3.31514493]
[1757330942381,1.0190724,880.6,878.85,3.31514493]
[1757330942786,1.0190724,880.57,878.85,3.31514493]
[1757330943086,1.0190724,880.49,878.82,3.31514493]
[1757330943286,1.0190724,880.5,878.82,3.31514493]
[1757330943886,1.0190724,880.48,878.82,3.31514493]
[1757330944189,1.0190724,880.44,878.81,3.31514493]
[1757330944388,1.0190724,880.45,878.81,3.31514493]
[1757330944787,1.0190724,880.48,878.78,3.31514493]
[1757330944985,1.0190724,880.47,878.77,3.31514493]
[1757330945386,1.0190724,880.46,878.74,3.31514493]
[1757330945589,1.0190724,880.44,878.72,3.31514493]
[1757330946291,0.19800459,880.7,878.72,3.31514493]
[1757330946292,1.0190724,880.45,878.72,3.31514493]
[1757330946491,1.0190724,880.44,878.71,3.31514493]
[1757330946691,1.0190724,880.45,878.71,3.31514493]
[1757330946991,1.0190724,880.43,878.71,3.31514493]
[1757330947189,1.0190724,880.4,878.71,3.31514493]
[1757330947389,1.0190724,880.36,878.65,3.31514493]
[1757330947788,1.0190724,880.33,878.64,3.31514493]
[1757330947988,1.0190724,880.32,878.62,3.31514493]
[1757330948392,1.0190724,880.33,878.62,3.31514493]
[1757330948687,1.0190724,880.39,878.62,3.31514493]
[1757330949290,1.0190724,880.47,878.63,3.31514493]
[1757330949494,1.0190724,880.52,878.64,3.31514493]
[1757330949794,1.0190724,880.53,878.64,3.31514493]
[1757330950091,1.0190724,880.52,878.64,3.31514493]
[1757330950291,1.0190724,880.54,878.64,3.31514493]
[1757330950495,1.0190724,880.63,878.64,1.78715153]
[1757330950798,1.0190724,880.65,878.64,1.78715153]
[1757330951392,1.0190724,880.66,878.64,1.78715153]
[1757330952296,1.0190724,880.68,878.64,1.78715153]
[1757330953202,1.0190724,880.69,878.64,1.78715153]
[1757330953401,1.21707699,880.7,878.64,1.78715153]
[1757330954298,0.19800459,880.7,878.64,1.78715153]
[1757330955001,1.21707699,880.7,878.64,1.78715153]
[1757330955201,0.19800459,880.7,878.64,1.78715153]
[1757330957301,1.21707699,880.7,878.64,1.78715153]
[1757330959204,1.0190724,880.69,878.64,1.78715153]
[1757330959807,1.0190724,880.68,878.64,1.78715153]
[1757330960205,1.0190724,880.69,878.64,1.78715153]
[1757330960508,1.0190724,880.58,878.64,3.31514493]
[1757330963312,1.0190724,880.56,878.64,3.31514493]
[1757330963713,0.19800459,880.7,878.77,1.78715153]
[1757330964009,0.19800459,880.7,878.82,1.78715153]
[1757330964212,0.19800459,880.7,878.81,1.78715153]
[1757330965311,0.19800459,880.7,878.81,3.31514493]
[1757330966011,0.19800459,880.7,878.85,3.31514493]
[1757330967113,0.19800459,880.7,878.84,3.31514493]
[1757330967314,0.19800459,880.7,877.46,0.19817203]
[1757330967315,1.0190724,880.66,878.76,3.31514493]
[1757330967921,1.0190724,880.65,878.76,3.31514493]
[1757330968220,1.0190724,880.58,878.7,3.31514493]
[1757330968718,1.0190724,880.57,878.69,3.31514493]
[1757330968917,1.0190724,880.56,878.69,3.31514493]
[1757330970020,1.0190724,880.57,878.68,3.31514493]
[1757330970519,1.0190724,880.57,878.69,3.31514493]
[1757330972220,1.0190724,880.57,878.68,3.31514493]
[1757330973221,1.0190724,880.56,878.68,3.31514493]
[1757330974321,1.0190724,880.55,878.68,3.31514493]
[1757330974924,1.0190724,880.59,878.68,3.31514493]
[1757330976617,1.0190724,880.61,878.68,3.31514493]
[1757330977025,1.0190724,880.57,878.66,3.31514493]
[1757330977621,1.0190724,880.59,878.66,3.31514493]
[1757330979220,1.0190724,880.58,878.66,3.31514493]
[1757330980325,1.0190724,880.57,878.66,3.31514493]
[1757330981327,1.0190724,880.56,878.66,3.31514493]
[1757330982324,1.0190724,880.55,878.66,3.31514493]
[1757330983324,0.19800459,880.7,878.66,3.31514493]
[1757330983325,1.0190724,880.54,878.66,3.31514493]
[1757330983525,1.0190724,880.5,878.66,3.31514493]
[1757330984223,0.19800459,880.7,878.66,3.31514493]
[1757330984224,1.0190724,880.49,878.66,3.31514493]
[1757330985324,1.0190724,880.48,878.66,3.31514493]
[1757330986228,1.0190724,880.47,878.66,3.31514493]
[1757330987332,1.0190724,880.44,878.66,3.31514493]
[1757330988529,1.0190724,880.43,878.66,3.31514493]
[1757330989329,1.0190724,880.43,878.67,3.31514493]
[1757330989629,1.0190724,880.42,878.67,3.31514493]
[1757330989829,1.0190724,880.46,878.67,3.31514493]
[1757330990333,1.0190724,880.45,878.67,3.31514493]
[1757330991334,1.0190724,880.44,878.66,3.31514493]
[1757330991533,1.0190724,880.47,878.66,3.31514493]
[1757330991934,1.0190724,880.48,878.66,3.31514493]
[1757330992134,1.0190724,880.53,878.69,3.31514493]
[1757330992330,1.0190724,880.52,878.69,3.31514493]
[1757330993233,1.0190724,880.51,878.69,3.31514493]
[1757330994134,1.0190724,880.49,878.69,3.31514493]
[1757330994437,1.0190724,880.46,878.69,2.5466557]
[1757330994637,1.0190724,880.47,878.69,3.31473308]
[1757330995133,1.0190724,880.46,878.69,3.31473308]
[1757330995432,1.0190724,880.45,878.69,3.31473308]
[1757330996137,1.0190724,880.46,878.69,3.31473308]
[1757330996437,1.0190724,880.44,878.69,3.31473308]
[1757330996835,1.0190724,880.62,878.7,3.31473308]
[1757330997035,0.19800459,880.7,878.81,3.31473308]
[1757330999537,1.21707699,880.7,878.81,3.31473308]
[1757331000036,1.0190724,880.68,878.81,3.31473308]
[1757331001339,1.0190724,880.67,878.81,3.31473308]
[1757331001936,1.0190724,880.66,878.81,3.31473308]
[1757331002343,1.0190724,880.65,878.81,3.31473308]
[1757331002740,1.0190724,880.62,878.81,3.31473308]
[1757331003238,1.0190724,880.62,878.8,3.31473308]
[1757331003543,1.0190724,880.61,878.8,3.31473308]
[1757331003745,1.0190724,880.6,878.8,3.31473308]
[1757331005045,1.0190724,880.57,878.8,3.31473308]
[1757331005342,1.0190724,880.52,878.8,3.31473308]
[1757331005544,1.0190724,880.52,878.81,3.31473308]
[1757331006342,1.0190724,880.51,878.81,3.31473308]
[1757331006541,1.0190724,880.43,878.81,3.31473308]
[1757331006942,1.0190724,880.42,878.8,3.31473308]
[1757331007342,1.0190724,880.43,878.8,3.31473308]
[1757331009944,1.0190724,880.46,878.79,3.31473308]
[1757331010541,1.0190724,880.44,878.77,3.31473308]
[1757331011242,1.0190724,880.67,878.78,3.31473308]
[1757331015259,1.0190724,880.66,878.78,3.31473308]
[1757331016461,1.0190724,880.67,878.78,3.31473308]
[1757331017658,1.0190724,880.65,878.78,3.31473308]
[1757331018262,1.0190724,880.46,878.78,3.31473308]
[1757331019264,1.0190724,880.48,878.78,3.31473308]
[1757331019465,1.0190724,880.48,878.77,3.31473308]
[1757331019960,1.0190724,880.45,878.74,3.31473308]
[1757331020565,1.0190724,880.43,878.71,3.31473308]
[1757331020760,1.0190724,880.48,878.71,3.31473308]
[1757331021265,1.0190724,880.47,878.71,3.31473308]
[1757331021565,1.0190724,880.5,878.71,3.31473308]
[1757331021763,1.0190724,880.4,878.61,3.31473308]
[1757331022163,1.0190724,880.38,878.61,3.31473308]
[1757331022362,1.0190724,880.34,878.61,3.31473308]
[1757331022562,1.0190724,880.34,877.81,2.5379779]
[1757331022563,1.0190724,880.34,878.6,3.31473308]
[1757331022765,1.0190724,880.15,878.54,3.31473308]
[1757331022964,0.19819291,879.91,878.54,3.31473308]
[1757331025563,0.19819291,879.91,878.5,3.31473308]
[1757331026162,0.19819291,879.91,878.1,2.5379779]
[1757331026163,0.19819291,879.91,878.43,3.31473308]
[1757331026367,0.19819291,879.91,878.42,3.31473308]
[1757331029470,0.19819291,879.91,878.43,3.31473308]
[1757331030674,0.19819291,879.91,878.42,3.31473308]
[1757331031373,0.19819291,879.91,878.42,1.78673968]
[1757331033879,0.19819291,879.91,878.43,1.78673968]
[1757331038180,0.19819291,879.91,878.43,3.31473308]
[1757331040981,0.19819291,879.91,878.42,3.31473308]
[1757331041882,0.19819291,879.91,878.39,3.31473308]
[1757331042579,0.19819291,879.91,878.38,3.31473308]
[1757331043084,0.19819291,879.91,878.39,3.31473308]
[1757331047188,0.19819291,879.91,878.39,1.78673968]
[1757331047387,0.19819291,879.91,878.42,1.78673968]
[1757331048887,0.19819291,879.91,878.41,1.78673968]
[1757331054192,0.19819291,879.91,878.41,3.31473308]
[1757331059799,0.19819291,879.91,878.49,2.29607078]
[1757331059995,0.19819291,879.91,878.54,3.31473308]
[1757331063394,0.19819291,879.91,878.55,3.31473308]
[1757331063599,0.19819291,879.91,878.61,1.78673968]
[1757331063798,0.19819291,879.91,878.61,3.31473308]
[1757331065695,0.19819291,879.91,878.6,3.31473308]
[1757331066900,0.19819291,879.91,878.61,3.31473308]
[1757331068599,0.19819291,879.91,878.6,3.31473308]
[1757331072302,0.19819291,879.91,878.61,3.31473308]
[1757331095421,0.19819291,879.91,878.62,3.31473308]
[1757331096525,0.19819291,879.91,878.63,3.31473308]
[1757331097021,0.19819291,879.91,878.66,3.31473308]
[1757331097226,0.19819291,879.91,878.69,3.31473308]
[1757331099926,0.19819291,879.91,878.71,3.31473308]
[1757331100129,0.19819291,879.91,878.72,3.31473308]
[1757331105238,0.19819291,879.91,878.74,3.31473308]
[1757331108240,0.19819291,879.91,878.75,3.31473308]
[1757331118348,0.19819291,879.91,878.77,3.31473308]
[1757331123446,0.19819291,879.91,878.84,3.31473308]
[1757331124751,0.19819291,879.91,878.92,3.31473308]
[1757331125347,0.19819291,879.91,878.96,3.31473308]
[1757331135557,0.19819291,879.91,879.01,3.31473308]
[1757331142969,0.19819291,879.91,879.02,3.31473308]
[1757331145870,0.19819291,879.91,879.03,3.31473308]
[1757331147773,0.19819291,879.91,879.1,3.31473308]
[1757331148074,0.19819291,879.91,879.09,3.31473308]
[1757331153273,0.19819291,879.91,879.07,1.78673968]
[1757331153479,0.19819291,879.91,878.94,3.31473308]
[1757331153676,0.19819291,879.91,878.91,3.31473308]
[1757331155882,0.19819291,879.91,878.92,3.31473308]
[1757331156083,0.19819291,879.91,878.93,3.31473308]
[1757331157485,0.19819291,879.91,878.95,3.31473308]
[1757331160487,0.19819291,879.91,878.96,3.31473308]
[1757331161192,0.19819291,879.91,878.97,3.31473308]
[1757331161492,0.19819291,879.91,879.01,3.31473308]
[1757331161692,0.19819291,879.91,879.02,3.31473308]
[1757331161890,0.19819291,879.91,879.01,3.31473308]
[1757331162793,0.19819291,879.91,879.02,3.31473308]
[1757331164688,0.19819291,879.91,879.05,3.31473308]
[1757331182502,0.19819291,879.91,878.99,3.31473308]
[1757331182703,0.19819291,879.91,878.98,3.31473308]
[1757331182902,0.19819291,879.91,878.94,3.31473308]
[1757331183808,0.19819291,879.91,878.93,3.31473308]
[1757331190114,0.19819291,879.91,878.94,3.31473308]
[1757331198218,0.19819291,879.91,878.95,3.31473308]
[1757331198422,0.19819291,879.91,878.96,3.31473308]
[1757331200024,0.19819291,879.91,878.95,3.31473308]
[1757331200225,0.19819291,879.91,878.94,3.31473308]
[1757331200524,0.19819291,879.91,878.92,3.31473308]
[1757331200724,0.19819291,879.91,878.91,3.31473308]
[1757331203127,0.19819291,879.91,878.9,3.31473308]
[1757331203423,0.19819291,879.91,878.86,3.31473308]
[1757331203628,0.19819291,879.91,878.77,3.31473308]
[1757331203828,0.19819291,879.91,878.65,3.31473308]
[1757331204029,0.19819291,879.91,878.62,3.31473308]
[1757331204228,0.19819291,879.91,878.58,3.31473308]
[1757331204925,0.19819291,879.91,878.57,3.31473308]
[1757331209626,0.19819291,879.91,877.55,2.5379779]
[1757331209627,0.19819291,879.91,878.55,3.31473308]
[1757331210633,0.19819291,879.91,878.49,3.31473308]
[1757331210829,0.19819291,879.91,878.46,3.31473308]
[1757331211733,0.19819291,879.91,878.42,3.31473308]
[1757331218641,0.19819291,879.91,878.38,3.31473308]
[1757331223139,1.0190724,880.41,878.38,3.31473308]
[1757331223342,0.19822114,879.53,878.38,3.31473308]
[1757331223540,1.0190724,880.41,878.38,3.31473308]
[1757331223841,0.19822057,879.25,878.38,3.31473308]
[1757331224144,1.0190724,880.42,878.38,3.31473308]
[1757331224339,0.1982217,879.04,878.38,3.31473308]
[1757331224538,1.0190724,880.43,878.37,3.31473308]
[1757331224744,1.0190724,880.44,878.37,3.31473308]
[1757331224945,0.19822001,878.88,878.37,3.31473308]
[1757331225243,1.0190724,880.47,878.37,3.31473308]
[1757331225440,0.19822057,878.76,878.37,3.31473308]
[1757331225645,1.0190724,880.46,878.37,3.31473308]
[1757331226145,1.0190724,880.47,878.37,3.31473308]
[1757331226446,0.19822001,879.94,878.37,3.31473308]
[1757331234053,0.19822001,879.94,878.32,3.31473308]
[1757331234352,0.19822001,879.94,878.27,3.31473308]
[1757331234851,0.19822001,879.94,878.23,3.31473308]
[1757331238649,0.19822001,879.94,878.26,1.78673968]
[1757331238852,0.19822001,879.94,878.27,1.78673968]
[1757331239352,0.19822001,879.94,878.32,1.78673968]
[1757331239549,0.19822001,879.94,878.33,1.78673968]
[1757331241452,0.19822001,879.94,878.32,1.78673968]
[1757331242150,0.19822001,879.94,878.32,3.31473308]
[1757331243254,0.19822001,879.94,878.31,3.31473308]
[1757331244357,0.19822001,879.94,878.32,3.31473308]
[1757331245453,0.19822001,879.94,878.38,3.31473308]
[1757331247553,0.19822001,879.94,878.5,3.31473308]
[1757331250956,0.19822001,879.94,878.53,3.31473308]
[1757331251155,0.19822001,879.94,878.55,3.31473308]
[1757331251456,0.19822001,879.94,878.62,3.31473308]
[1757331253162,0.19822001,879.94,878.61,3.31473308]
[1757331254763,0.19822001,879.94,878.61,1.78673968]
[1757331254967,0.19822001,879.94,878.74,1.78673968]
[1757331256564,0.19822001,879.94,878.74,3.31473308]
[1757331256765,0.19822001,879.94,878.74,1.78673968]
[1757331257169,0.19822001,879.94,878.74,3.31473308]
[1757331258465,0.19822001,879.94,878.73,3.31473308]
[1757331260270,0.19822001,879.94,878.72,3.31473308]
[1757331260470,0.19822001,879.94,878.68,3.31473308]
[1757331260669,0.19822001,879.94,878.66,3.31473308]
[1757331265675,0.19822001,879.94,878.78,1.78673968]
[1757331265876,0.19822001,879.94,878.8,1.78673968]
[1757331266971,0.19822001,879.94,878.79,1.78673968]
[1757331267171,0.19822001,879.94,878.74,3.31473308]
[1757331268180,0.19822001,879.94,877.75,2.5379779]
[1757331268181,0.19822001,879.94,878.71,3.31473308]
[1757331269074,0.19822001,879.94,878.53,1.78673968]
[1757331269775,0.19822001,879.94,878.51,1.78673968]
[1757331271479,0.19822001,879.94,878.5,1.78673968]
[1757331271782,0.19822001,879.94,878.5,3.31473308]
[1757331272478,0.19822001,879.94,878.51,3.31316344]
[1757331275581,0.19822001,879.94,878.52,3.31316344]
[1757331276583,0.19822001,879.94,878.51,3.31316344]
[1757331280486,0.19822001,879.94,878.52,3.31316344]
[1757331280686,0.19822001,879.94,878.51,3.31316344]
[1757331280891,0.19822001,879.94,878.52,3.31316344]
[1757331282688,0.19822001,879.94,878.51,3.31316344]
[1757331283795,0.19822001,879.94,878.53,3.31316344]
[1757331284995,0.19822001,879.94,878.51,3.31316344]
[1757331285190,0.19822001,879.94,878.41,3.31316344]
[1757331287295,0.19822001,879.94,878.42,3.31316344]
[1757331302701,0.19822001,879.94,878.43,3.31316344]
[1757331302900,0.19822001,879.94,878.44,3.31316344]
[1757331303104,0.19822001,879.94,878.5,3.31316344]
[1757331303702,0.19822001,879.94,878.55,3.31316344]
[1757331305501,0.19822001,879.94,878.58,3.31316344]
[1757331306406,0.19822001,879.94,878.61,3.31316344]
[1757331307002,0.19822001,879.94,878.62,3.31316344]
[1757331307207,0.19822001,879.94,878.62,2.5466557]
[1757331307502,0.19822001,879.94,878.62,3.31428888]
[1757331312110,0.19822001,879.94,878.65,3.31428888]
[1757331314113,0.19822001,879.94,878.74,3.31428888]
[1757331314308,0.19822001,879.94,878.81,3.31428888]
[1757331314810,0.19822001,879.94,878.93,3.31428888]
[1757331317312,0.19822001,879.94,878.95,3.31428888]
[1757331317511,0.19822001,879.94,879.01,3.31428888]
[1757331318713,0.19822001,879.94,879.0,3.31428888]
[1757331320913,0.19822001,879.94,878.09,2.5379779]
[1757331320914,0.19822001,879.94,879.01,3.31428888]
[1757331321312,0.19822001,879.94,879.02,3.31428888]
[1757331321517,0.19822001,879.94,879.01,3.31428888]
[1757331325518,0.19822001,879.94,879.01,1.78629548]
[1757331328321,0.19822001,879.94,879.01,3.31428888]
[1757331331821,0.19822001,879.94,879.02,3.31428888]
[1757331332117,0.19822001,879.94,879.01,3.31428888]
[1757331332717,0.19822001,879.94,878.99,3.31428888]
[1757331333618,0.19822001,879.94,878.9,3.31428888]
[1757331333821,0.19822001,879.94,878.91,3.31428888]
[1757331336020,0.19822001,879.94,878.94,3.31428888]
[1757331336421,0.19822001,879.94,878.98,3.31428888]
[1757331337321,0.19822001,879.94,879.02,1.0186623]
[1757331337524,0.19822001,879.94,879.02,3.31428888]
[1757331339524,0.19822001,879.94,879.03,1.78629548]
[1757331339725,0.19822001,879.94,879.08,1.78629548]
[1757331340527,0.19822001,879.94,879.09,1.78629548]
[1757331340728,0.19822001,879.94,879.12,1.78629548]
[1757331342826,0.19822001,879.94,879.11,1.78629548]
[1757331346938,0.19822001,879.94,879.12,1.78629548]
[1757331347239,0.19822001,879.94,879.17,1.78629548]
[1757331350646,0.19822001,879.94,879.17,3.31428888]
[1757331360955,0.19822001,879.94,879.07,3.31428888]
[1757331363360,0.19822001,879.94,879.03,3.31428888]
[1757331366761,1.0190724,880.96,879.03,3.31428888]
[1757331366960,1.0190724,880.95,879.03,3.31428888]
[1757331367156,1.0190724,880.94,879.03,3.31428888]
[1757331367659,1.0190724,880.93,879.03,3.31428888]
[1757331368358,1.0190724,880.91,879.03,3.31428888]
[1757331368859,1.0190724,880.9,879.02,1.5279934]
[1757331369062,1.0190724,880.82,879.01,3.31428888]
[1757331369362,1.0190724,880.74,878.94,3.31428888]
[1757331369662,1.0190724,880.72,878.94,3.31428888]
[1757331370361,1.0190724,880.71,878.94,3.31428888]
[1757331371067,0.19811675,880.27,878.94,3.31428888]
[1757331372068,0.19811675,880.27,878.93,3.31428888]
[1757331372666,0.19811675,880.27,878.91,3.31428888]
[1757331376873,0.19811675,880.27,878.92,3.31428888]
[1757331377169,0.19811675,880.27,878.91,3.31428888]
[1757331385071,0.19811675,880.27,878.93,3.31428888]
[1757331385277,0.19811675,880.27,878.95,3.31428888]
[1757331391482,0.19811675,880.27,878.95,1.78629548]
[1757331392186,0.19811675,880.27,878.95,3.31428888]
[1757331393681,0.19811675,880.27,877.3,0.19811675]
[1757331393682,0.19811675,880.27,878.89,3.31439795]
[1757331394481,0.19811675,880.27,878.86,3.31439795]
[1757331396582,0.19811675,880.27,878.26,2.5379779]
[1757331396583,0.19811675,880.27,878.85,3.31439795]
[1757331401494,0.19811675,880.27,878.86,3.31439795]
[1757331403797,0.19811675,880.27,878.9,3.31439795]
[1757331404999,0.19811675,880.27,878.89,3.31439795]
[1757331408705,0.19811675,880.27,878.89,2.5466557]
[1757331408904,0.19811675,880.27,878.89,3.31416615]
[1757331410206,0.19811675,880.27,878.89,1.78617275]
[1757331410403,0.19811675,880.27,878.89,3.31416615]
[1757331410606,0.19811675,880.27,878.9,1.78617275]
[1757331412402,0.19811675,880.27,878.9,3.31416615]
[1757331416105,0.19811675,880.27,878.89,3.31416615]
[1757331417310,0.19811675,880.27,878.9,3.31416615]
[1757331435121,0.19811675,880.27,878.91,3.31416615]
[1757331439626,0.19811675,880.27,878.89,3.31416615]
[1757331439823,0.19811675,880.27,878.85,3.31416615]
[1757331440022,0.19811675,880.27,878.84,3.31416615]
[1757331440822,0.19811675,880.27,878.82,3.31416615]
[1757331445726,0.19811675,880.27,878.85,3.31416615]
[1757331451635,0.19811675,880.27,878.76,3.31416615]
[1757331452331,0.19811675,880.27,878.74,3.31416615]
[1757331453036,0.19811675,880.27,878.73,3.31416615]
[1757331462344,0.19811675,880.27,877.61,3.5531691]
[1757331462345,0.19811675,880.27,878.74,3.31416615]
[1757331464949,0.19811675,880.27,878.74,1.78617275]
[1757331465250,0.19811675,880.27,878.73,1.78617275]
[1757331466252,0.19811675,880.27,878.7,1.78617275]
[1757331466449,0.19811675,880.27,878.67,1.78617275]
[1757331471653,0.19811675,880.27,878.66,1.78617275]
[1757331474759,0.19811675,880.27,878.66,3.31416615]
[1757331476663,0.19811675,880.27,877.96,2.5379779]
[1757331476664,0.19811675,880.27,878.62,3.31416615]
[1757331476859,0.19811675,880.27,878.61,3.31416615]
[1757331479466,0.19811675,880.27,878.61,1.78617275]
[1757331479663,0.19811675,880.27,878.45,1.78617275]
[1757331480063,0.19811675,880.27,878.46,1.78617275]
[1757331482569,0.19811675,880.27,878.43,1.5279934]
[1757331482570,0.19811675,880.27,878.47,1.78617275]
[1757331482964,0.19811675,880.27,878.47,3.31416615]
[1757331483265,0.19811675,880.27,878.5,3.31416615]
[1757331483469,0.19811675,880.27,878.54,3.31416615]
[1757331484269,0.19811675,880.27,878.57,3.31416615]
[1757331485770,0.19811675,880.27,878.57,2.5466557]
[1757331486069,0.19811675,880.27,878.57,3.314144]
[1757331501380,1.21718915,880.27,878.57,3.314144]
[1757331502480,1.0190724,880.24,878.57,3.314144]
[1757331503179,1.0190724,880.22,878.57,3.314144]
[1757331503577,1.0190724,880.21,878.57,3.314144]
[1757331503782,1.0190724,880.25,878.57,3.314144]
[1757331504181,1.0190724,880.24,878.57,3.314144]
[1757331504383,0.19811675,880.27,878.57,3.314144]
[1757331506182,1.21718915,880.27,878.57,3.314144]
[1757331507793,1.0190724,880.26,878.56,3.314144]
[1757331508297,1.0190724,880.26,878.57,3.314144]
[1757331508497,0.19811675,880.27,878.59,3.314144]
[1757331508698,0.19811675,880.27,878.7,3.314144]
[1757331517503,0.19811675,880.27,878.69,3.314144]
[1757331520704,0.19811675,880.27,878.7,3.314144]
[1757331537209,0.19811675,880.27,878.69,3.314144]
[1757331540609,0.19811675,880.27,878.7,3.314144]
[1757331546016,0.19811675,880.27,878.7,3.31556494]
[1757331554818,0.19811675,880.27,878.69,3.31556494]
[1757331555420,0.19811675,880.27,878.68,3.31556494]
[1757331556724,0.19811675,880.27,878.69,1.0186623]
[1757331556921,0.19811675,880.27,878.68,3.31556494]
[1757331559520,0.19811675,880.27,878.66,3.31556494]
[1757331562723,1.0190724,880.23,878.49,3.31556494]
[1757331562922,1.0190724,880.22,878.48,3.31556494]
[1757331563221,1.0190724,880.22,878.49,3.31556494]
[1757331563420,1.0190724,880.23,878.49,3.31556494]
[1757331564325,1.0190724,880.24,878.5,3.31556494]
[1757331565227,1.0190724,880.23,878.5,3.31556494]
[1757331565426,1.0190724,880.24,878.5,3.31556494]
[1757331566324,1.21718915,880.27,878.5,3.31556494]
[1757331566625,0.19811675,880.27,878.5,3.31556494]
[1757331568130,0.19811675,880.27,878.54,3.31556494]
[1757331568330,1.0190724,880.24,878.57,3.31556494]
[1757331569229,1.0190724,880.15,878.57,3.31556494]
[1757331569428,1.0190724,880.19,878.6,3.31556494]
[1757331571332,0.19819235,879.8,878.6,3.31556494]
[1757331573732,0.19819235,879.8,878.61,3.31556494]
[1757331580032,0.19819235,879.8,878.61,2.5466557]
[1757331580237,0.19819235,879.8,878.61,3.31567413]
[1757331580737,0.19819235,879.8,878.62,3.31567413]
[1757331583641,0.19819235,879.8,878.62,2.5466557]
[1757331583836,0.19819235,879.8,878.62,3.31567092]
[1757331594242,0.19819235,879.8,878.59,3.31567092]
[1757331594445,0.19819235,879.8,878.6,3.31567092]
[1757331594638,0.19819235,879.8,878.6,0.76901522]
[1757331594842,0.19819235,879.8,878.59,3.31567092]
[1757331596445,0.19819235,879.8,878.6,3.31567092]
[1757331605954,0.19819235,879.8,878.61,3.31567092]
[1757331612757,0.19819235,879.8,878.65,3.31567092]
[1757331613057,0.19819235,879.8,878.66,3.31567092]
[1757331613262,0.19819235,879.8,878.71,3.31567092]
[1757331619870,0.19819235,879.8,878.73,3.31567092]
[1757331620070,0.19819235,879.8,878.8,3.31567092]
[1757331620370,0.19819235,879.8,878.82,3.31567092]
[1757331621871,0.19819235,879.8,878.85,3.31567092]
[1757331622870,0.19819235,879.8,878.89,3.31567092]
[1757331629477,0.19819235,879.8,878.97,3.31567092]
[1757331637484,0.19819235,879.8,878.97,3.31325917]
[1757331664810,0.19819235,879.8,878.97,2.5466557]
[1757331665009,0.19819235,879.8,878.97,3.31340654]
[1757331676908,0.19819235,879.8,878.98,3.31340654]
[1757331677310,0.19819235,879.8,878.97,3.31340654]
[1757331677808,0.19819235,879.8,878.98,3.31340654]
[1757331678012,0.19819235,879.8,878.97,3.31340654]
[1757331678209,0.19819235,879.8,878.98,3.31340654]
[1757331688920,0.19819235,879.8,879.11,3.31340654]
[1757331717340,0.19819235,879.8,879.11,3.31505637]
[1757331721148,0.19819235,879.8,879.12,3.31505637]
[1757331738362,0.19819235,879.8,879.15,3.31505637]
[1757331738561,0.19819235,879.8,879.26,1.5279934]
[1757331738765,0.19819235,879.8,879.26,3.31505637]
[1757331740870,0.19819235,879.8,879.27,3.31505637]
[1757331752379,0.19819235,879.8,879.27,3.31496235]
[1757331755386,0.19819235,879.8,879.28,3.31496235]
[1757331755685,0.19819235,879.8,879.27,3.31496235]
[1757331765494,0.19819235,879.8,879.3,3.31496235]
[1757331770296,0.19819235,879.8,879.31,3.31496235]
[1757331771396,1.0190724,881.23,879.31,3.31496235]
[1757331771600,0.19801699,879.68,879.31,3.31496235]
[1757331771897,1.0190724,881.23,879.31,3.31496235]
[1757331772201,0.19801699,879.59,879.31,3.31496235]
[1757331772401,1.0190724,881.23,879.31,3.31496235]
[1757331772701,0.19801699,879.53,879.31,3.31496235]
[1757331772902,1.0190724,881.23,879.31,3.31496235]
[1757331773101,1.0190724,881.23,879.32,3.31496235]
[1757331773402,0.19801699,879.48,879.32,3.31496235]
[1757331773601,1.0190724,881.23,879.32,3.31496235]
[1757331773803,0.19801642,880.76,879.32,3.31496235]
[1757331783110,0.19801642,880.76,879.38,3.31496235]
[1757331786717,0.19801642,880.76,879.38,1.78696895]
[1757331787815,0.19801642,880.76,879.39,1.78696895]
[1757331788119,0.19801642,880.76,879.39,3.31496235]
[1757331789318,0.19801642,880.76,879.48,1.78696895]
[1757331789813,0.19801642,880.76,879.48,3.31496235]
[1757331794422,0.19801642,880.76,879.48,1.78696895]
[1757331798525,0.19801642,880.76,879.46,1.78696895]
[1757331799222,0.19801642,880.76,879.46,3.31496235]
[1757331799521,0.19801642,880.76,879.46,1.78696895]
[1757331801627,0.19801642,880.76,879.47,1.78696895]
[1757331802928,0.19801642,880.76,879.47,3.31496235]
[1757331803227,0.19801642,880.76,879.48,3.31496235]
[1757331806726,1.0190724,881.72,879.48,1.58893224]
[1757331807027,1.0190724,880.76,878.95,2.29630005]
[1757331807326,1.0190724,880.78,878.95,2.29630005]